fUSD/lending_fUSD_20251206
["ID","MTS","AMOUNT","RATE_DAILY","PERIOD"]
[396571764,1765055454586,-500.0,0.00016712,2]
[396571766,1765055454595,-500.0,0.00016712,2]
[396571768,1765055454605,-500.0,0.00016712,2]
[396571770,1765055454615,-500.0,0.00016712,2]
[396571772,1765055454624,-500.0,0.00016712,2]
[396571775,1765055454636,-500.0,0.00016712,2]
[396571777,1765055454646,-500.0,0.00016712,2]
[396571779,1765055454655,-503.93655594,0.00016712,2]
[396571781,1765055454664,-500.0,0.00016712,2]
[396571783,1765055454673,-502.28440473,0.00016712,2]
[396571785,1765055454683,-500.0,0.00016712,2]
[396571787,1765055454692,-500.0,0.00016712,2]
[396571789,1765055454701,-1776.71,0.00016712,2]
[396571791,1765055454718,-500.0,0.00016712,2]
[396571793,1765055454727,-500.0,0.00016712,2]
[396571795,1765055454736,-500.0,0.00016712,2]
[396571797,1765055454746,-500.0,0.00016712,2]
[396571799,1765055454756,-422.62851451,0.00016712,2]
[396571801,1765055454765,-500.0,0.00016712,2]
[396571803,1765055454774,-500.0,0.00016712,2]
[396571805,1765055454783,-502.04733105,0.00016712,2]
[396571807,1765055454794,-500.0,0.00016712,2]
[396571809,1765055454803,-2300.32,0.00016712,2]
[396571811,1765055454812,-500.0,0.00016712,2]
[396571813,1765055454821,-500.0,0.00016712,2]
[396571815,1765055454831,-500.0,0.00016712,2]
[396571817,1765055454840,-537.4,0.00016712,2]
[396571819,1765055454849,-500.0,0.00016712,2]
[396571821,1765055454859,-500.0,0.00016712,2]
[396571823,1765055454868,-500.0,0.00016712,2]
[396571825,1765055454877,-502.94253642,0.00016712,2]
[396571827,1765055454886,-500.0,0.00016712,2]
[396571829,1765055454895,-156.956192,0.00016712,2]
[396571831,1765055454904,-500.0,0.00016712,2]
[396571833,1765055454913,-500.0,0.00016712,2]
[396571835,1765055454923,-500.0,0.00016712,2]
[396571837,1765055454933,-500.0,0.00016712,2]
[396571839,1765055454942,-500.0,0.00016712,2]
[396571841,1765055454950,-502.72705575,0.00016712,2]
[396571843,1765055454960,-500.0,0.00016712,2]
[396571845,1765055454970,-1977.52,0.00016712,2]
[396571847,1765055454980,-500.0,0.00016712,2]
[396571849,1765055454989,-500.0,0.00016712,2]
[396571851,1765055454998,-500.0,0.00016712,2]
[396571853,1765055455007,-500.0,0.00016712,2]
[396571854,1765055455017,-500.0,0.00016712,2]
[396571857,1765055455028,-500.0,0.00016712,2]
[396571858,1765055455038,-500.0,0.00016712,2]
[396571860,1765055455047,-500.0,0.00016712,2]
[396571863,1765055455057,-782.13,0.00016712,2]
[396571864,1765055455066,-2318.55,0.00016712,2]
[396571866,1765055455077,-500.0,0.00016712,2]
[396571868,1765055455087,-500.0,0.00016712,2]
[396571870,1765055455096,-500.0,0.00016712,2]
[396571873,1765055455105,-969.31,0.00016712,2]
[396571874,1765055455115,-500.0,0.00016712,2]
[396571876,1765055455124,-2241.51,0.00016712,2]
[396571878,1765055455134,-1941.68,0.00016712,2]
[396571881,1765055455144,-500.0,0.00016712,2]
[396571882,1765055455153,-503.84313609,0.00016712,2]
[396571884,1765055455162,-1066.0504696,0.00016712,2]
[396571886,1765055455171,-500.0,0.00016712,2]
[396571888,1765055455181,-500.0,0.00016712,2]
[396571890,1765055455190,-500.0,0.00016712,2]
[396571892,1765055455200,-500.0,0.00016712,2]
[396571894,1765055455209,-500.0,0.00016712,2]
[396571896,1765055455223,-500.0,0.00016712,2]
[396571898,1765055455232,-500.0,0.00016712,2]
[396571900,1765055455242,-500.0,0.00016712,2]
[396571902,1765055455251,-500.0,0.00016712,2]
[396571904,1765055455261,-500.0,0.00016712,2]
[396571906,1765055455275,-500.0,0.00016712,2]
[396571908,1765055455284,-500.0,0.00016712,2]
[396571911,1765055455294,-502.18039003,0.00016712,2]
[396571912,1765055455303,-500.0,0.00016712,2]
[396571914,1765055455314,-500.0,0.00016712,2]
[396571916,1765055455323,-505.93462661,0.00016712,2]
[396571918,1765055455332,-505.98218405,0.00016712,2]
[396571920,1765055455341,-500.0,0.00016712,2]
[396571922,1765055455352,-500.0,0.00016712,2]
[396571924,1765055455364,-500.0,0.00016712,2]
[396571926,1765055455377,-502.37825631,0.00016712,2]
[396571928,1765055455387,-500.0,0.00016712,2]
[396571930,1765055455399,-500.0,0.00016712,2]
[396571932,1765055455408,-500.0,0.00016712,2]
[396571934,1765055455417,-500.0,0.00016712,2]
[396571936,1765055455426,-500.0,0.00016712,2]
[396571938,1765055455435,-526.37,0.00016712,2]
[396571940,1765055455444,-500.0,0.00016712,2]
[396571942,1765055455454,-301.67144987,0.00016712,2]
[396571944,1765055455463,-500.0,0.00016712,2]
[396571946,1765055455472,-500.0,0.00016712,2]
[396571948,1765055455481,-568.48812078,0.00016712,2]
[396571950,1765055455490,-500.0,0.00016712,2]
[396571952,1765055455499,-500.0,0.00016712,2]
[396571954,1765055455508,-500.0,0.00016712,2]
[396571956,1765055455517,-500.0,0.00016712,2]
[396571957,1765055455526,-500.0,0.00016712,2]
[396571959,1765055455535,-727.89,0.00016712,2]
[396571961,1765055455548,-500.0,0.00016712,2]
[396571963,1765055455557,-3177.54,0.00016712,2]
[396571965,1765055455568,-929.55,0.00016712,2]
[396571967,1765055455577,-500.0,0.00016712,2]
[396571969,1765055455586,-527.66452269,0.00016712,2]
[396571971,1765055455595,-500.0,0.00016712,2]
[396571973,1765055455604,-500.0,0.00016712,2]
[396571975,1765055455613,-500.0,0.00016712,2]
[396571977,1765055455622,-500.0,0.00016712,2]
[396571979,1765055455631,-500.0,0.00016712,2]
[396571981,1765055455640,-500.0,0.00016712,2]
[396571983,1765055455649,-500.0,0.00016712,2]
[396571985,1765055455658,-1550.23,0.00016712,2]
[396571987,1765055455667,-500.0,0.00016712,2]
[396571989,1765055455676,-500.0,0.00016712,2]
[396571991,1765055455685,-500.0,0.00016712,2]
[396571993,1765055455694,-500.0,0.00016712,2]
[396571995,1765055455705,-500.0,0.00016712,2]
[396571997,1765055455716,-500.0,0.00016712,2]
[396571999,1765055455726,-500.0,0.00016712,2]
[396572001,1765055455735,-500.0,0.00016712,2]
[396572003,1765055455744,-500.0,0.00016712,2]
[396572005,1765055455753,-1000.0,0.00016712,2]
[396572007,1765055455763,-500.0,0.00016712,2]
[396572009,1765055455772,-500.0,0.00016712,2]
[396572011,1765055455781,-500.0,0.00016712,2]
[396572013,1765055455790,-500.0,0.00016712,2]
[396572015,1765055455799,-500.0,0.00016712,2]
[396572017,1765055455808,-500.0,0.00016712,2]
[396572019,1765055455817,-500.0,0.00016712,2]
[396572021,1765055455826,-500.0,0.00016712,2]
[396572023,1765055455835,-500.0,0.00016712,2]
[396572024,1765055455844,-502.05293914,0.00016712,2]
[396572026,1765055455853,-561.72,0.00016712,2]
[396572028,1765055455863,-500.0,0.00016712,2]
[396572030,1765055455872,-781.029587,0.00016712,2]
[396572032,1765055455881,-500.0,0.00016712,2]
[396572034,1765055455890,-772.35,0.00016712,2]
[396572036,1765055455899,-2483.1,0.00016712,2]
[396572038,1765055455908,-3609.837448,0.00016712,2]
[396572040,1765055455917,-500.0,0.00016712,2]
[396572042,1765055455926,-12761.468551,0.00016712,2]
[396572044,1765055455938,-500.0,0.00016712,2]
[396572046,1765055455947,-500.0,0.00016712,2]
[396572048,1765055455956,-8425.817215,0.00016712,2]
[396572050,1765055455966,-500.0,0.00016712,2]
[396572052,1765055455975,-500.0,0.00016712,2]
[396572054,1765055455984,-500.0,0.00016712,2]
[396572056,1765055455993,-261.244917,0.00016712,2]
[396572058,1765055456002,-339.37940199,0.00016712,2]
[396572060,1765055456011,-500.0,0.00016712,2]
[396572062,1765055456021,-500.0,0.00016712,2]
[396572064,1765055456031,-500.0,0.00016712,2]
[396572066,1765055456039,-500.0,0.00016712,2]
[396572068,1765055456049,-500.0,0.00016712,2]
[396572070,1765055456059,-500.0,0.00016712,2]
[396572072,1765055456068,-500.0,0.00016712,2]
[396572074,1765055456077,-543.98,0.00016712,2]
[396572076,1765055456087,-910.586378,0.00016712,2]
[396572078,1765055456095,-808.44,0.00016712,2]
[396572080,1765055456104,-500.0,0.00016712,2]
[396572081,1765055456114,-500.0,0.00016712,2]
[396572083,1765055456124,-500.0,0.00016712,2]
[396572085,1765055456135,-664.83,0.00016712,2]
[396572087,1765055456146,-500.0,0.00016712,2]
[396572089,1765055456156,-500.0,0.00016712,2]
[396572091,1765055456165,-5781.832447,0.00016712,2]
[396572093,1765055456176,-500.0,0.00016712,2]
[396572095,1765055456187,-503.72880678,0.00016712,2]
[396572097,1765055456196,-578.66,0.00016712,2]
[396572099,1765055456208,-500.0,0.00016712,2]
[396572101,1765055456218,-504.48917676,0.00016712,2]
[396572103,1765055456228,-2260.4,0.00016712,2]
[396572105,1765055456237,-512.44,0.00016712,2]
[396572107,1765055456247,-500.0,0.00016712,2]
[396572109,1765055456256,-500.0,0.00016712,2]
[396572111,1765055456266,-500.0,0.00016712,2]
[396572113,1765055456281,-500.0,0.00016712,2]
[396572115,1765055456291,-500.0,0.00016712,2]
[396572117,1765055456300,-500.0,0.00016712,2]
[396572119,1765055456311,-500.0,0.00016712,2]
[396572121,1765055456320,-500.0,0.00016712,2]
[396572123,1765055456329,-500.0,0.00016712,2]
[396572126,1765055456349,-500.0,0.00016712,2]
[396572128,1765055456358,-500.0,0.00016712,2]
[396572129,1765055456368,-500.0,0.00016712,2]
[396572131,1765055456377,-2613.88,0.00016712,2]
[396572133,1765055456386,-781.04,0.00016712,2]
[396572135,1765055456395,-500.0,0.00016712,2]
[396572137,1765055456404,-500.0,0.00016712,2]
[396572139,1765055456414,-2694.21,0.00016712,2]
[396572141,1765055456423,-165.549258,0.00016712,2]
[396572143,1765055456432,-165.549258,0.00016712,2]
[396572145,1765055456441,-165.549258,0.00016712,2]
[396572147,1765055456450,-165.549258,0.00016712,2]
[396572149,1765055456460,-2571.85,0.00016712,2]
[396572151,1765055456470,-165.549258,0.00016712,2]
[396572153,1765055456480,-500.0,0.00016712,2]
[396572155,1765055456490,-165.549258,0.00016712,2]
[396572157,1765055456500,-500.0,0.00016712,2]
[396572159,1765055456510,-500.0,0.00016712,2]
[396572161,1765055456520,-165.549258,0.00016712,2]
[396572163,1765055456530,-165.549258,0.00016712,2]
[396572165,1765055456540,-159.52965,0.00016712,2]
[396572167,1765055456550,-165.549258,0.00016712,2]
[396572169,1765055456559,-506.25,0.00016712,2]
[396572171,1765055456570,-500.0,0.00016712,2]
[396572173,1765055456579,-165.549258,0.00016712,2]
[396572175,1765055456589,-165.549258,0.00016712,2]
[396572177,1765055456599,-165.549258,0.00016712,2]
[396572179,1765055456608,-500.0,0.00016712,2]
[396572181,1765055456618,-2397.67,0.00016712,2]
[396572183,1765055456627,-168.18659999,0.00016712,2]
[396572185,1765055456640,-500.0,0.00016712,2]
[396572187,1765055456650,-500.0,0.00016712,2]
[396572189,1765055456659,-500.0,0.00016712,2]
[396572191,1765055456669,-500.0,0.00016712,2]
[396572193,1765055456679,-529.15,0.00016712,2]
[396572196,1765055456691,-503.77094397,0.00016712,2]
[396572198,1765055456701,-500.0,0.00016712,2]
[396572200,1765055456710,-500.0,0.00016712,2]
[396572202,1765055456720,-502.99925531,0.00016712,2]
[396572204,1765055456730,-500.0,0.00016712,2]
[396572206,1765055456739,-500.0,0.00016712,2]
[396572208,1765055456748,-500.0,0.00016712,2]
[396572210,1765055456758,-500.0,0.00016712,2]
[396572211,1765055456767,-500.0,0.00016712,2]
[396572214,1765055456779,-500.0,0.00016712,2]
[396572216,1765055456789,-500.0,0.00016712,2]
[396572218,1765055456799,-4973.73,0.00016712,2]
[396572220,1765055456810,-500.0,0.00016712,2]
[396572222,1765055456819,-500.0,0.00016712,2]
[396572224,1765055456830,-2518.03,0.00016712,2]
[396572226,1765055456840,-502.27,0.00016712,2]
[396572228,1765055456849,-500.0,0.00016712,2]
[396572230,1765055456859,-500.0,0.00016712,2]
[396572232,1765055456868,-500.0,0.00016712,2]
[396572234,1765055456878,-426.3966586,0.00016712,2]
[396572236,1765055456892,-500.0,0.00016712,2]
[396572238,1765055456902,-502.40038541,0.00016712,2]
[396572241,1765055456912,-500.0,0.00016712,2]
[396572243,1765055456922,-500.0,0.00016712,2]
[396572245,1765055456932,-500.0,0.00016712,2]
[396572247,1765055456943,-2115.57,0.00016712,2]
[396572249,1765055456952,-500.0,0.00016712,2]
[396572251,1765055456962,-500.0,0.00016712,2]
[396572253,1765055456973,-500.0,0.00016712,2]
[396572255,1765055456984,-500.0,0.00016712,2]
[396572257,1765055456995,-507.962144,0.00016712,2]
[396572259,1765055457005,-500.0,0.00016712,2]
[396572261,1765055457015,-500.0,0.00016712,2]
[396572263,1765055457026,-500.0,0.00016712,2]
[396572266,1765055457036,-1471.09,0.00016712,2]
[396572268,1765055457048,-626.81,0.00016712,2]
[396572270,1765055457058,-500.0,0.00016712,2]
[396572272,1765055457068,-500.0,0.00016712,2]
[396572274,1765055457078,-500.0,0.00016712,2]
[396572276,1765055457089,-500.0,0.00016712,2]
[396572278,1765055457099,-2447.7,0.00016712,2]
[396572280,1765055457110,-500.0,0.00016712,2]
[396572282,1765055457119,-500.0,0.00016712,2]
[396572284,1765055457129,-2203.17,0.00016712,2]
[396572286,1765055457140,-500.0,0.00016712,2]
[396572288,1765055457150,-500.0,0.00016712,2]
[396572290,1765055457161,-500.0,0.00016712,2]
[396572292,1765055457171,-500.0,0.00016712,2]
[396572294,1765055457182,-693.24,0.00016712,2]
[396572296,1765055457192,-527.14,0.00016712,2]
[396572298,1765055457202,-500.0,0.00016712,2]
[396572300,1765055457212,-500.0,0.00016712,2]
[396572302,1765055457223,-500.0,0.00016712,2]
[396572305,1765055457233,-552.52,0.00016712,2]
[396572307,1765055457244,-564.85,0.00016712,2]
[396572309,1765055457255,-151.0,0.00016712,2]
[396572311,1765055457265,-151.0,0.00016712,2]
[396572313,1765055457279,-500.0,0.00016712,2]
[396572315,1765055457289,-500.0,0.00016712,2]
[396572317,1765055457299,-500.0,0.00016712,2]
[396572319,1765055457310,-505.85146155,0.00016712,2]
[396572321,1765055457321,-500.0,0.00016712,2]
[396572323,1765055457333,-500.0,0.00016712,2]
[396572324,1765055457343,-500.0,0.00016712,2]
[396572325,1765055457356,-500.0,0.00016712,2]
[396572326,1765055457366,-432.31,0.00016712,2]
[396572327,1765055457376,-500.0,0.00016712,2]
[396572328,1765055457387,-500.0,0.00016712,2]
[396572329,1765055457396,-500.0,0.00016712,2]
[396572330,1765055457406,-152.0,0.00016712,2]
[396572331,1765055457416,-833.0,0.00016712,2]
[396572332,1765055457426,-151.0,0.00016712,2]
[396572333,1765055457436,-151.12890987,0.00016712,2]
[396572334,1765055457446,-200.72423302,0.00016712,2]
[396572335,1765055457456,-500.0,0.00016712,2]
[396572336,1765055457466,-500.0,0.00016712,2]
[396572337,1765055457476,-500.0,0.00016712,2]
[396572338,1765055457486,-151.0,0.00016712,2]
[396572339,1765055457496,-151.0,0.00016712,2]
[396572340,1765055457506,-500.0,0.00016712,2]
[396572341,1765055457516,-151.0,0.00016712,2]
[396572342,1765055457526,-151.0,0.00016712,2]
[396572343,1765055457536,-151.0,0.00016712,2]
[396572345,1765055457546,-500.0,0.00016712,2]
[396572347,1765055457556,-151.0,0.00016712,2]
[396572349,1765055457566,-500.0,0.00016712,2]
[396572351,1765055457578,-151.0,0.00016712,2]
[396572353,1765055457588,-151.0,0.00016712,2]
[396572355,1765055457599,-151.0,0.00016712,2]
[396572357,1765055457609,-151.0,0.00016712,2]
[396572359,1765055457619,-151.0,0.00016712,2]
[396572361,1765055457629,-151.0,0.00016712,2]
[396572363,1765055457639,-151.0,0.00016712,2]
[396572365,1765055457649,-151.0,0.00016712,2]
[396572367,1765055457659,-151.0,0.00016712,2]
[396572369,1765055457669,-151.0,0.00016712,2]
[396572371,1765055457680,-693.92,0.00016712,2]
[396572374,1765055457690,-202.584472,0.00016712,2]
[396572376,1765055457700,-151.0,0.00016712,2]
[396572378,1765055457710,-196.911356,0.00016712,2]
[396572380,1765055457720,-500.0,0.00016712,2]
[396572382,1765055457730,-500.0,0.00016712,2]
[396572384,1765055457740,-150.0,0.00016712,2]
[396572386,1765055457751,-623.73,0.00016712,2]
[396572388,1765055457761,-504.3241041,0.00016712,2]
[396572390,1765055457771,-500.0,0.00016712,2]
[396572392,1765055457782,-504.04401512,0.00016712,2]
[396572394,1765055457793,-2328.38,0.00016712,2]
[396572396,1765055457802,-500.0,0.00016712,2]
[396572398,1765055457811,-500.0,0.00016712,2]
[396572400,1765055457822,-208.91205399,0.00016712,2]
[396572402,1765055457833,-500.0,0.00016712,2]
[396572404,1765055457842,-629.4,0.00016712,2]
[396572406,1765055457852,-500.0,0.00016712,2]
[396572408,1765055457862,-500.0,0.00016712,2]
[396572410,1765055457873,-500.0,0.00016712,2]
[396572413,1765055457884,-500.0,0.00016712,2]
[396572415,1765055457894,-2892.6,0.00016712,2]
[396572417,1765055457905,-186.00842668,0.00016712,2]
[396572419,1765055457915,-277.127399,0.00016712,2]
[396572421,1765055457925,-500.0,0.00016712,2]
[396572423,1765055457935,-277.127399,0.00016712,2]
[396572425,1765055457945,-502.03089373,0.00016712,2]
[396572427,1765055457954,-500.0,0.00016712,2]
[396572429,1765055457964,-277.127399,0.00016712,2]
[396572431,1765055457975,-277.127399,0.00016712,2]
[396572433,1765055457986,-277.127399,0.00016712,2]
[396572435,1765055457996,-277.127399,0.00016712,2]
[396572437,1765055458006,-150.0,0.00016712,2]
[396572439,1765055458016,-277.127399,0.00016712,2]
[396572441,1765055458026,-277.127399,0.00016712,2]
[396572443,1765055458037,-500.0,0.00016712,2]
[396572445,1765055458047,-500.0,0.00016712,2]
[396572447,1765055458057,-500.0,0.00016712,2]
[396572450,1765055458070,-500.0,0.00016712,2]
[396572452,1765055458080,-500.0,0.00016712,2]
[396572454,1765055458090,-500.0,0.00016712,2]
[396572456,1765055458100,-500.0,0.00016712,2]
[396572458,1765055458111,-502.55622645,0.00016712,2]
[396572460,1765055458120,-1996.53,0.00016712,2]
[396572462,1765055458131,-500.0,0.00016712,2]
[396572464,1765055458141,-500.0,0.00016712,2]
[396572466,1765055458151,-249.832696,0.00016712,2]
[396572468,1765055458161,-500.0,0.00016712,2]
[396572470,1765055458171,-249.832696,0.00016712,2]
[396572472,1765055458180,-1379.85,0.00016712,2]
[396572474,1765055458190,-500.0,0.00016712,2]
[396572476,1765055458200,-249.832696,0.00016712,2]
[396572478,1765055458210,-249.832696,0.00016712,2]
[396572480,1765055458220,-500.0,0.00016712,2]
[396572482,1765055458230,-500.0,0.00016712,2]
[396572485,1765055458241,-3037.67,0.00016712,2]
[396572487,1765055458251,-249.832696,0.00016712,2]
[396572489,1765055458261,-604.42,0.00016712,2]
[396572491,1765055458275,-249.832696,0.00016712,2]
[396572493,1765055458286,-500.0,0.00016712,2]
[396572495,1765055458296,-500.0,0.00016712,2]
[396572497,1765055458306,-249.832696,0.00016712,2]
[396572499,1765055458317,-249.832696,0.00016712,2]
[396572501,1765055458327,-1143.02,0.00016712,2]
[396572503,1765055458337,-500.0,0.00016712,2]
[396572505,1765055458350,-500.0,0.00016712,2]
[396572507,1765055458361,-151.0,0.00016712,2]
[396572509,1765055458373,-151.000016,0.00016712,2]
[396572511,1765055458383,-151.0,0.00016712,2]
[396572513,1765055458394,-500.0,0.00016712,2]
[396572515,1765055458403,-151.0,0.00016712,2]
[396572517,1765055458412,-2265.67,0.00016712,2]
[396572520,1765055458422,-500.0,0.00016712,2]
[396572522,1765055458432,-151.0,0.00016712,2]
[396572524,1765055458442,-151.0,0.00016712,2]
[396572526,1765055458452,-285.784669,0.00016712,2]
[396572528,1765055458462,-500.0,0.00016712,2]
[396572530,1765055458472,-500.0,0.00016712,2]
[396572532,1765055458482,-503.26039617,0.00016712,2]
[396572534,1765055458492,-500.0,0.00016712,2]
[396572536,1765055458502,-2446.51,0.00016712,2]
[396572538,1765055458511,-1960.22,0.00016712,2]
[396572540,1765055458521,-2171.78,0.00016712,2]
[396572542,1765055458532,-281.66687347,0.00016712,2]
[396572544,1765055458542,-2413.02,0.00016712,2]
[396572546,1765055458551,-500.0,0.00016712,2]
[396572548,1765055458561,-642.73,0.00016712,2]
[396572550,1765055458572,-500.0,0.00016712,2]
[396572552,1765055458582,-500.0,0.00016712,2]
[396572554,1765055458591,-151.0,0.00016712,2]
[396572556,1765055458600,-500.0,0.00016712,2]
[396572558,1765055458610,-167.662723,0.00016712,2]
[396572560,1765055458619,-500.0,0.00016712,2]
[396572562,1765055458629,-500.0,0.00016712,2]
[396572564,1765055458639,-500.0,0.00016712,2]
[396572566,1765055458649,-500.0,0.00016712,2]
[396572569,1765055458659,-151.0,0.00016712,2]
[396572571,1765055458670,-657.2,0.00016712,2]
[396572604,1765055458977,-186.616004,0.00016712,2]
[396572606,1765055458986,-151.0,0.00016712,2]
[396572608,1765055458996,-500.0,0.00016712,2]
[396572610,1765055459006,-2447.39,0.00016712,2]
[396572612,1765055459015,-505.01111889,0.00016712,2]
[396572614,1765055459025,-1974.53,0.00016712,2]
[396572616,1765055459036,-1683.34,0.00016712,2]
[396572619,1765055459046,-500.0,0.00016712,2]
[396572620,1765055459057,-693.71,0.00016712,2]
[396572623,1765055459067,-500.0,0.00016712,2]
[396572624,1765055459081,-500.0,0.00016712,2]
[396572627,1765055459091,-500.0,0.00016712,2]
[396572628,1765055459101,-1764.29,0.00016712,2]
[396572630,1765055459111,-500.0,0.00016712,2]
[396572632,1765055459121,-1191.13,0.00016712,2]
[396572634,1765055459131,-500.0,0.00016712,2]
[396572637,1765055459141,-609.82,0.00016712,2]
[396572639,1765055459151,-621.74,0.00016712,2]
[396572641,1765055459161,-500.0,0.00016712,2]
[396572643,1765055459171,-1802.11,0.00016712,2]
[396572645,1765055459182,-2317.73,0.00016712,2]
[396572647,1765055459191,-2002.2,0.00016712,2]
[396572649,1765055459201,-641.76,0.00016712,2]
[396572650,1765055459211,-8075.02,0.00016712,2]
[396572653,1765055459221,-500.0,0.00016712,2]
[396572654,1765055459231,-500.0,0.00016712,2]
[396572657,1765055459240,-500.0,0.00016712,2]
[396572658,1765055459250,-500.0,0.00016712,2]
[396572661,1765055459259,-500.0,0.00016712,2]
[396572663,1765055459269,-500.0,0.00016712,2]
[396572665,1765055459282,-1279.02,0.00016712,2]
[396572667,1765055459291,-757.03,0.00016712,2]
[396572668,1765055459301,-500.0,0.00016712,2]
[396572670,1765055459311,-500.0,0.00016712,2]
[396572673,1765055459323,-500.0,0.00016712,2]
[396572675,1765055459333,-1479.48,0.00016712,2]
[396572676,1765055459343,-500.0,0.00016712,2]
[396572679,1765055459354,-518.73877924,0.00016712,2]
[396572681,1765055459364,-500.0,0.00016712,2]
[396572682,1765055459374,-1350.61,0.00016712,2]
[396572685,1765055459384,-500.0,0.00016712,2]
[396572686,1765055459393,-500.0,0.00016712,2]
[396572689,1765055459403,-601.81,0.00016712,2]
[396572690,1765055459413,-500.0,0.00016712,2]
[396572693,1765055459422,-500.0,0.00016712,2]
[396572694,1765055459432,-935.95,0.00016712,2]
[396572697,1765055459442,-503.01531954,0.00016712,2]
[396572698,1765055459451,-500.0,0.00016712,2]
[396572701,1765055459461,-568.52588495,0.00016712,2]
[396572702,1765055459470,-500.0,0.00016712,2]
[396572704,1765055459479,-2529.89,0.00016712,2]
[396572706,1765055459488,-501.86724321,0.00016712,2]
[396572708,1765055459498,-500.0,0.00016712,2]
[396572710,1765055459507,-500.0,0.00016712,2]
[396572712,1765055459516,-151.0,0.00016712,2]
[396572714,1765055459526,-500.0,0.00016712,2]
[396572716,1765055459535,-225.686062,0.00016712,2]
[396572718,1765055459544,-2179.79,0.00016712,2]
[396572720,1765055459554,-500.0,0.00016712,2]
[396572722,1765055459564,-500.0,0.00016712,2]
[396572725,1765055459575,-532.09821768,0.00016712,2]
[396572727,1765055459584,-1292.94,0.00016712,2]
[396572728,1765055459594,-500.0,0.00016712,2]
[396572731,1765055459603,-2305.36,0.00016712,2]
[396572733,1765055459614,-4910.8,0.00016712,2]
[396572734,1765055459624,-2236.15,0.00016712,2]
[396572736,1765055459634,-533.97,0.00016712,2]
[396572739,1765055459644,-4047.46,0.00016712,2]
[396572740,1765055459653,-220.168136,0.00016712,2]
[396572743,1765055459664,-500.0,0.00016712,2]
[396572745,1765055459676,-220.168136,0.00016712,2]
[396572746,1765055459687,-503.94744766,0.00016712,2]
[396572748,1765055459696,-425.60504475,0.00016712,2]
[396572750,1765055459706,-220.168136,0.00016712,2]
[396572753,1765055459716,-220.168136,0.00016712,2]
[396572754,1765055459727,-500.0,0.00016712,2]
[396572757,1765055459738,-151.0,0.00016712,2]
[396572759,1765055459749,-500.0,0.00016712,2]
[396572760,1765055459759,-163.554883,0.00016712,2]
[396572762,1765055459769,-220.168136,0.00016712,2]
[396572765,1765055459779,-220.168136,0.00016712,2]
[396572766,1765055459790,-500.0,0.00016712,2]
[396572768,1765055459799,-500.0,0.00016712,2]
[396572770,1765055459808,-220.168136,0.00016712,2]
[396572773,1765055459818,-500.0,0.00016712,2]
[396572775,1765055459829,-220.168136,0.00016712,2]
[396572776,1765055459837,-500.0,0.00016712,2]
[396572778,1765055459847,-500.0,0.00016712,2]
[396572780,1765055459857,-2582.14,0.00016712,2]